bitfinex-derivatives/quotes_SOLF0:USTF0_20250312
["timestamp","ask_amount","ask_price","bid_price","bid_amount"]
[1741770512986,195.0,125.27,125.15,43.23751559]
[1741770513190,3.0939,125.3,125.15,43.23751559]
[1741770513393,2.1958,125.36,125.18,43.23751559]
[1741770513691,43.23751559,125.31,125.18,43.23751559]
[1741770513895,43.23751559,125.25,125.11,5.9857]
[1741770514196,43.23751559,125.22,125.12,1.59846547]
[1741770514500,43.23751559,125.18,125.04,282.93751559]
[1741770515293,0.05800471,125.12,125.1,0.05236396]
[1741770515790,43.23751559,125.13,125.05,10.970689]
[1741770515988,42.22144965,125.06,125.02,4.34900666]
[1741770516397,43.23751559,125.04,125.02,4.34900666]
[1741770516590,43.23751559,125.04,124.93,5.8438]
[1741770516790,43.23751559,125.04,125.03,0.05188772]
[1741770516992,45.63751559,125.04,124.89,43.23751559]
[1741770517193,43.23751559,124.99,124.87,2.9134]
[1741770517390,8.002,124.99,124.87,2.9134]
[1741770517694,43.23751559,124.93,124.8,43.23751559]
[1741770517890,43.23751559,124.9,124.79,2.9134]
[1741770518097,8.0073,124.91,124.81,43.23751559]
[1741770518400,2.9716,124.97,124.81,43.23751559]
[1741770518401,0.05267407,124.88,124.85,0.05917841]
[1741770518599,263.77506195,124.88,124.85,0.05917841]
[1741770518796,263.72238788,124.88,124.79,2.9134]
[1741770519095,43.23751559,124.82,124.75,20.0]
[1741770519296,43.23751559,124.79,124.75,20.0]
[1741770519497,43.23751559,124.82,124.75,20.0]
[1741770519703,0.05725239,124.78,124.76,0.06098595]
[1741770520298,245.16133787,124.87,124.75,63.23751559]
[1741770520690,245.16133787,124.87,124.78,43.23751559]
[1741770520890,89.14957741,124.87,124.81,43.23751559]
[1741770521095,89.14957741,124.87,124.8,43.23751559]
[1741770521499,43.23751559,124.98,124.84,43.23751559]
[1741770521700,340.98609427,124.86,124.85,248.031]
[1741770521903,331.61939427,124.86,124.85,310.031]
[1741770522107,242.18025481,124.86,124.82,240.02]
[1741770522304,237.53855481,124.86,124.85,51.24851559]
[1741770522505,210.98105481,124.86,124.85,51.24851559]
[1741770522703,276.90004321,124.89,124.88,8.0091]
[1741770522902,276.90004321,124.89,124.88,51.24661559]
[1741770523208,264.57504321,124.89,124.88,45.63751559]
[1741770523413,264.57504321,124.89,124.85,105.23751559]
[1741770523707,208.05534109,124.88,124.87,0.05403638]
[1741770523908,183.19554109,124.88,124.87,8.06373638]
[1741770524103,77.8711656,124.88,124.87,10.46373638]
[1741770524607,77.8711656,124.88,124.87,0.05403638]
[1741770524799,77.8711656,124.88,124.87,2.45403638]
[1741770525002,65.6455656,124.88,124.87,2.45403638]
[1741770525204,0.05341213,124.9,124.87,0.05403638]
[1741770525509,9.754e-05,124.91,124.89,43.23751559]
[1741770525717,56.60622166,125.04,124.89,43.23751559]
[1741770525909,14.9106,125.03,124.93,43.23751559]
[1741770526603,14.9106,125.03,124.92,240.04]
[1741770526799,14.9106,125.03,124.96,8.0039]
[1741770527002,0.05064165,124.99,124.97,0.05124567]
[1741770527401,9.65064165,124.99,124.97,0.05124567]
[1741770527600,0.05064165,124.99,124.97,0.05124567]
[1741770528207,9.65064165,124.99,124.92,240.04]
[1741770528600,9.65064165,124.99,124.92,241.64102465]
[1741770528806,8.0027,124.98,124.92,241.64102465]
[1741770529000,148.4164171,124.98,124.92,241.64102465]
[1741770529201,150.0137171,124.98,124.92,241.64102465]
[1741770529609,140.4137171,124.98,124.95,43.23751559]
[1741770529811,7.454e-05,124.96,124.95,45.63751559]
[1741770530113,126.3489171,124.98,124.97,8.0033]
[1741770530412,126.3489171,124.98,124.95,43.23751559]
[1741770530613,114.1354171,124.98,124.97,8.0033]
[1741770530814,56.60622166,124.98,124.96,43.23751559]
[1741770531312,56.60622166,124.98,124.92,473.32747308]
[1741770531712,580.84904913,124.99,124.92,280.32747308]
[1741770531910,580.84904913,124.99,124.92,237.08995749]
[1741770532112,0.05302384,124.96,124.94,0.05337415]
[1741770532509,2.384e-05,124.96,124.95,43.23751559]
[1741770532711,580.84904913,124.99,124.95,43.23751559]
[1741770532910,568.77074913,124.99,124.98,51.24021559]
[1741770533112,541.94804913,124.99,124.98,51.24021559]
[1741770533311,282.06745407,124.99,124.98,53.64021559]
[1741770533507,219.04085407,124.99,124.98,53.64021559]
[1741770533707,204.88135407,124.99,124.98,53.55103122]
[1741770534111,2.8691,125.13,124.98,88.78584681]
[1741770534413,12.4691,125.13,125.05,43.23751559]
[1741770534613,259.72464693,125.08,125.05,43.23751559]
[1741770534911,155.83478816,125.08,125.05,105.23751559]
[1741770535112,43.23751559,125.27,125.07,43.23751559]
[1741770535312,6.0498,125.26,125.15,43.23751559]
[1741770535508,43.23751559,125.25,125.13,43.23751559]
[1741770535714,0.06100974,125.18,125.13,43.23751559]
[1741770536113,9.66100974,125.18,125.12,240.06]
[1741770536313,52.89852533,125.18,125.07,43.23751559]
[1741770536516,2.8667,125.17,125.14,0.0573289]
[1741770536711,2.8667,125.17,125.05,301.94]
[1741770536915,12.4667,125.17,125.05,62.0]
[1741770537216,43.23751559,125.14,124.98,283.17751559]
[1741770537419,43.23751559,125.11,124.98,283.17751559]
[1741770537819,7.9991,125.04,124.98,283.17751559]
[1741770538121,0.05932162,125.06,125.03,0.05190772]
[1741770538321,9.6,125.09,125.0,43.23751559]
[1741770538516,0.05858232,125.06,125.03,0.05429854]
[1741770538721,7.9989,125.04,125.03,0.05429854]
[1741770538922,9.65858232,125.06,125.03,0.05429854]
[1741770539115,0.05858232,125.06,125.03,0.05429854]
[1741770540017,0.05858232,125.06,125.03,62.05429854]
[1741770540218,0.05858232,125.06,125.04,43.23751559]
[1741770540420,2.8923,125.15,125.04,86.47503118]
[1741770540620,9.6,125.15,125.08,43.23751559]
[1741770540814,9.6,125.15,125.04,43.23751559]
[1741770540815,9.6,125.15,125.07,43.23751559]
[1741770541021,43.23751559,125.14,125.01,43.23751559]
[1741770541320,7.9988,125.05,124.98,283.17751559]
[1741770541624,43.23751559,125.08,124.98,239.94]
[1741770542024,5.7503,125.07,124.98,239.94]
[1741770542219,43.23751559,125.06,124.98,239.94]
[1741770542422,43.23751559,125.04,124.92,284.75854024]
[1741770542723,43.23751559,125.0,124.91,30.94886511]
[1741770543021,8.0027,124.98,124.97,7.303e-05]
[1741770543220,0.05453055,124.99,124.91,30.94886511]
[1741770543419,9.65445752,124.99,124.91,30.94886511]
[1741770543615,8.0029,124.98,124.91,82.1930807]
[1741770543820,9.59992697,124.99,124.91,74.1863807]
[1741770544026,9.59992697,124.99,124.91,30.94886511]
[1741770544525,0.05266418,124.96,124.94,0.05050071]
[1741770544922,0.05266418,124.96,124.95,43.23751559]
[1741770545128,3.0268,125.06,124.95,314.1063807]
[1741770545426,12.62672697,125.06,124.98,43.23751559]
[1741770545625,12.62672697,125.06,124.96,6.81791282]
[1741770545828,9.59992697,125.04,124.96,6.81791282]
[1741770546030,43.23751559,125.03,124.95,72.77745904]
[1741770546332,0.05295335,125.01,124.99,0.05114333]
[1741770546532,0.05295335,125.01,125.0,84.37566072]
[1741770546733,9.59992697,125.01,125.0,84.37566072]
[1741770547130,0.06126569,125.02,125.0,84.37566072]
[1741770547325,9.66119266,125.02,125.0,74.88746072]
[1741770547528,43.23751559,125.01,124.99,71.03014287]
[1741770547730,8.0014,125.0,124.97,283.71661086]
[1741770547935,43.23751559,125.01,124.97,283.71661086]
[1741770548130,86.47503118,124.98,124.97,52.18452343]
[1741770548330,8.004,124.96,124.95,263.67393977]
[1741770548632,88.87503118,124.98,124.95,122.20891954]
[1741770548836,0.05941694,124.97,124.95,47.62862573]
[1741770549135,43.23751559,124.96,124.95,47.62862573]
[1741770549327,0.05941694,124.97,124.95,47.62862573]
[1741770550031,0.05941694,124.97,124.96,6.90878384]
[1741770550830,0.05941694,124.97,124.95,47.62862573]
[1741770551236,0.05941694,124.97,124.94,0.05089901]
[1741770551440,130.53911322,125.05,124.94,43.2884146]
[1741770551738,87.30159763,125.05,124.94,43.23751559]
[1741770552037,87.30159763,125.05,124.97,43.23751559]
[1741770552437,130.53911322,125.05,124.95,6.85111248]
[1741770552638,130.53911322,125.05,124.96,6.85111248]
[1741770552934,130.53911322,125.05,124.99,0.05214426]
[1741770552935,0.05377139,125.01,124.99,0.05214426]
[1741770553641,130.95239644,125.03,125.02,8.0]
[1741770553946,130.95239644,125.03,125.0,50.08862807]
[1741770553947,130.95239644,125.03,125.0,24.44013215]
[1741770554133,130.95239644,125.03,125.0,27.40903215]
[1741770554330,130.95239644,125.03,125.0,2.9689]
[1741770554538,126.20839644,125.03,125.0,2.9689]
[1741770554837,101.35228351,125.04,125.03,7.9995]
[1741770555035,101.35228351,125.04,125.0,3.02715569]
[1741770555236,0.0516563,125.03,125.01,43.23751559]
[1741770555842,157.83518869,125.03,124.98,43.23751559]
[1741770556642,157.83518869,125.03,125.01,43.23751559]
[1741770557140,157.83518869,125.03,125.01,43.29881751]
[1741770557345,32.89371771,125.17,125.01,45.69881751]
[1741770557537,32.89371771,125.17,125.04,43.23751559]
[1741770557738,3.0804,125.15,125.01,43.23751559]
[1741770558544,0.05886571,125.07,125.05,0.0556078]
[1741770559946,87.71658058,125.06,124.98,43.23751559]
[1741770560242,87.71658058,125.06,124.95,43.23751559]
[1741770560440,87.71658058,125.06,124.98,43.23751559]
[1741770560840,87.71658058,125.06,124.93,3.1355]
[1741770561047,87.71658058,125.06,125.01,0.06045038]
[1741770561239,0.05347944,125.03,125.01,0.06045038]
[1741770561845,0.05347944,125.03,125.01,43.29796597]
[1741770562035,101.35228351,125.05,125.01,45.69796597]
[1741770562242,101.35228351,125.05,125.04,43.23751559]
[1741770563047,101.35228351,125.05,125.02,43.23751559]
[1741770563240,101.35228351,125.05,125.03,0.05586668]
[1741770563635,411.12931904,125.05,125.03,0.05586668]
[1741770564146,411.12931904,125.05,124.94,43.23751559]
[1741770564343,417.25321904,125.05,124.96,43.23751559]
[1741770564644,101.35228351,125.04,124.96,43.23751559]
[1741770564843,101.35228351,125.04,125.01,43.23751559]
[1741770565043,101.35228351,125.04,125.03,43.23751559]
[1741770565346,101.41332687,125.04,125.03,43.23751559]
[1741770565541,309.77703553,125.05,125.03,43.23751559]
[1741770565944,273.60666865,125.05,125.03,45.63751559]
[1741770566245,268.44509417,125.05,125.03,45.63751559]
[1741770566446,268.44509417,125.05,125.04,113.23631559]
[1741770566647,268.44509417,125.05,125.04,62.0]
[1741770567546,268.44509417,125.05,125.04,64.4]
[1741770567740,268.44509417,125.05,125.04,107.63751559]
[1741770567946,216.97032002,125.05,125.04,115.63631559]
[1741770568143,203.08232002,125.05,125.04,308.63631559]
[1741770568342,7.9932,125.13,125.05,7.9978]
[1741770568538,3.0455,125.16,125.07,43.23751559]
[1741770568746,3.0455,125.16,125.11,43.23751559]
[1741770569144,3.0455,125.16,125.07,239.92]
[1741770569451,43.23751559,125.15,125.05,43.23751559]
[1741770569753,0.05135531,125.13,125.1,0.05525562]
[1741770570341,0.05135531,125.13,125.04,44.83700375]
[1741770570840,43.23751559,125.15,125.04,44.83700375]
[1741770571352,43.23751559,125.15,125.1,31.97818585]
[1741770571553,0.05242319,125.11,125.1,31.97818585]
[1741770571753,7.9935,125.13,125.1,31.97818585]
[1741770572046,0.05579231,125.12,125.09,0.06075431]
[1741770572255,0.05579231,125.12,125.08,127.91274343]
[1741770572448,7.9956,125.09,125.08,127.91274343]
[1741770572648,43.2933079,125.12,125.08,70.90658141]
[1741770572844,43.2933079,125.12,125.08,61.42048141]
[1741770573044,43.23751559,125.09,125.06,26.56989653]
[1741770573246,43.23751559,125.09,125.05,58.33985689]
[1741770573456,43.23751559,125.06,125.03,258.02467482]
[1741770573660,7.9988,125.04,125.03,258.02467482]
[1741770573954,7.9988,125.04,125.03,208.62636771]
[1741770574659,0.05125266,125.05,125.03,208.62636771]
[1741770574660,8.04955266,125.05,125.03,208.62636771]
[1741770574854,0.05125266,125.05,125.03,208.62636771]
[1741770575153,94.47383118,125.04,125.03,110.95901176]
[1741770575350,86.47503118,125.04,125.02,50.52722921]
[1741770575555,8.0053,124.94,124.9,6.0124]
[1741770575752,43.23751559,124.97,124.9,6.0124]
[1741770575955,43.23751559,125.0,124.9,6.0124]
[1741770576158,43.23751559,124.97,124.9,6.0124]
[1741770576556,0.05732056,124.95,124.92,0.05189674]
[1741770577562,0.05732056,124.95,124.93,8.0054]
[1741770577769,0.05732056,124.95,124.92,0.05189674]
[1741770577954,283.17751559,125.07,124.94,43.23751559]
[1741770578452,43.23751559,125.07,124.94,43.23751559]
[1741770578657,7.999,125.04,124.97,43.23751559]
[1741770578852,43.23751559,125.07,124.95,5.7115]
[1741770579054,0.05510075,125.02,124.99,0.06136384]
[1741770579453,0.05510075,125.02,124.99,0.05102244]
[1741770579761,8.05530075,125.02,124.99,0.05102244]
[1741770579961,0.05510075,125.02,124.99,0.05102244]
[1741770580860,43.23751559,125.1,124.99,0.05102244]
[1741770581061,43.23751559,125.1,124.98,43.23751559]
[1741770581359,43.23751559,125.06,124.95,48.94901559]
[1741770581757,8.0006,125.02,124.95,48.94901559]
[1741770581962,43.23751559,125.04,124.95,5.7115]
[1741770582258,0.05870043,125.0,124.97,0.06135762]
[1741770583058,43.23751559,124.98,124.97,0.00625687]
[1741770583250,43.23751559,124.98,124.88,8.7835]
[1741770583759,43.23751559,124.95,124.88,2.8799]
[1741770583962,43.23751559,124.98,124.88,2.8799]
[1741770584160,43.23751559,125.0,124.88,46.11741559]
[1741770584367,0.05076474,124.94,124.92,0.0570895]
[1741770584559,43.23751559,125.0,124.88,46.11741559]
[1741770584751,43.23751559,124.98,124.92,0.05056272]
[1741770584951,0.05100471,124.94,124.88,2.8799]
[1741770585355,0.05100471,124.94,124.9,0.05282997]
[1741770585764,0.05100471,124.94,124.9,43.29034556]
[1741770585960,0.05100471,124.94,124.92,8.0061]
[1741770586161,8.0031,124.98,124.92,8.0061]
[1741770586162,33.00826138,125.03,124.92,43.23751559]
[1741770586360,33.00826138,125.03,124.97,8.0028]
[1741770586659,33.00826138,125.03,124.94,43.23751559]
[1741770586860,44.0053553,125.05,124.98,8.0023]
[1741770587057,44.0053553,125.05,124.96,43.23751559]
[1741770587457,0.06098827,125.02,124.99,0.05616057]
[1741770589261,43.23751559,125.0,124.89,2.8634]
[1741770589469,43.23751559,124.98,124.9,3.0277]
[1741770590260,8.0048,124.95,124.9,3.0277]
[1741770590463,0.05090687,124.95,124.93,0.05840541]
[1741770592956,8.05570687,124.95,124.93,0.05840541]
[1741770593162,43.23751559,124.94,124.82,43.23751559]
[1741770593468,43.23751559,124.92,124.83,2.8836]
[1741770593665,43.23751559,124.94,124.83,2.8836]
[1741770593969,8.0042,124.96,124.86,43.23751559]
[1741770594359,0.0575128,124.92,124.9,0.05191324]
[1741770594668,43.23751559,125.02,124.9,43.23751559]
[1741770594967,43.23751559,125.02,124.92,8.0061]
[1741770595167,43.23751559,125.0,124.91,8.9622]
[1741770595360,43.23751559,125.0,124.92,8.0065]
[1741770595568,8.0036,124.97,124.91,8.9622]
[1741770595867,0.05361807,124.97,124.94,0.06000737]
[1741770596256,86.47503118,124.95,124.87,1.60166573]
[1741770596459,43.23751559,124.92,124.8,43.23751559]
[1741770596659,8.0082,124.9,124.8,43.23751559]
[1741770596863,43.23751559,124.95,124.83,43.23751559]
[1741770597065,43.23751559,124.95,124.8,43.23751559]
[1741770597265,43.23751559,124.92,124.8,43.23751559]
[1741770597567,0.05138908,124.89,124.86,0.06074085]
[1741770597869,8.0095,124.88,124.86,0.06074085]
[1741770598068,0.05138908,124.89,124.86,0.06074085]
[1741770599269,8.0048,124.95,124.86,0.06074085]
[1741770599468,43.23751559,124.98,124.86,0.06074085]
[1741770599659,43.23751559,124.98,124.85,43.23751559]
[1741770600064,43.23751559,124.98,124.87,8.0095]
[1741770600273,43.23751559,124.96,124.85,43.23751559]
[1741770600467,43.23751559,124.98,124.87,43.23751559]
[1741770600665,0.05912941,124.94,124.91,0.05822765]
[1741770601066,87.24287089,125.02,124.91,43.29574324]
[1741770601565,87.24287089,125.02,124.91,43.23751559]
[1741770601770,43.23751559,124.94,124.88,6.2346]
[1741770602372,0.05113201,124.92,124.9,0.05989897]
[1741770603373,8.05793201,124.92,124.9,0.05989897]
[1741770603671,43.23751559,124.98,124.9,0.05989897]
[1741770603875,43.23751559,125.05,124.96,8.0037]
[1741770604079,43.23751559,125.03,124.91,283.35751559]
[1741770604274,43.23751559,125.01,124.91,240.12]
[1741770604474,43.23751559,125.01,124.94,8.0052]
[1741770604669,43.23751559,125.03,124.92,3.1641]
[1741770604967,0.057058,124.99,124.96,0.0585606]
[1741770605476,8.059458,124.99,124.96,0.0585606]
[1741770605668,0.057058,124.99,124.96,0.0585606]
[1741770605866,44.0053553,125.04,124.96,0.0585606]
[1741770606168,44.0053553,125.04,124.96,2.9632]
[1741770606376,43.23751559,125.03,124.96,2.9632]
[1741770606580,8.0008,125.01,124.96,2.9632]
[1741770606875,43.23751559,125.05,124.96,2.9632]
[1741770607065,43.23751559,125.03,124.97,0.06092593]
[1741770607271,0.05144083,125.0,124.97,0.06092593]
[1741770607570,0.06076909,125.0,124.97,0.05587254]
[1741770608080,8.0027,124.98,124.97,0.05587254]
[1741770608376,86.47503118,124.98,124.83,43.23751559]
[1741770608572,43.23751559,124.9,124.84,2.9245]
[1741770608882,43.23751559,124.88,124.81,5.9448]
[1741770609174,43.23751559,124.88,124.79,2.9245]
[1741770609369,43.23751559,124.88,124.83,0.05398205]
[1741770609576,0.05463102,124.86,124.83,0.05398205]
[1741770610873,43.23751559,124.94,124.83,0.05398205]
[1741770611177,43.23751559,125.0,124.88,43.23751559]
[1741770611476,43.23751559,124.96,124.89,6.1868]
[1741770611874,44.0053553,124.9,124.89,6.1868]
[1741770612076,44.0053553,124.9,124.85,8.0105]
[1741770612373,44.0053553,124.9,124.88,0.05499535]
[1741770612578,0.06063011,124.89,124.88,0.05499535]
[1741770613367,44.0053553,124.9,124.88,0.05499535]
[1741770613674,132.03304554,124.93,124.88,0.05499535]
[1741770613675,43.23751559,124.93,124.88,0.05499535]
[1741770613878,54.23460951,124.95,124.88,0.05499535]
[1741770614579,0.05365815,124.93,124.88,0.05499535]
[1741770615181,43.23751559,124.92,124.88,0.05499535]
[1741770615881,43.23751559,124.9,124.78,283.33751559]
[1741770616079,43.23751559,124.88,124.78,283.33751559]
[1741770616578,8.0136,124.81,124.76,3.1444]
[1741770616785,43.23751559,124.84,124.76,3.1444]
[1741770616981,0.1225,124.94,124.78,43.23751559]
[1741770617190,43.23751559,124.93,124.82,8.0128]
[1741770617485,0.05901083,124.87,124.8,43.23751559]
[1741770617871,0.05901083,124.87,124.86,0.05977201]
[1741770618183,0.05901083,124.87,124.8,43.23751559]
[1741770618377,0.05901083,124.87,124.85,0.05422631]
[1741770618577,0.05901083,124.87,124.79,3.1068]
[1741770618578,43.29652642,124.87,124.79,3.1068]
[1741770618992,10.99709392,124.91,124.85,0.00370083]
[1741770619284,10.99709392,124.91,124.85,43.23751559]
[1741770619581,10.99709392,124.91,124.86,5.8304]
[1741770619782,111.53129174,124.92,124.89,43.23751559]
[1741770619978,88.02203036,124.92,124.89,43.23751559]
[1741770620278,11.04831752,124.94,124.89,43.29547269]
[1741770621077,11.04831752,124.94,124.91,43.23751559]
[1741770621481,41.33839204,124.96,124.91,43.23751559]
[1741770621683,6.965e-05,124.94,124.93,43.23751559]
[1741770621884,36.76296169,124.96,124.93,43.23751559]
[1741770622277,36.76296169,124.96,124.91,43.23751559]
[1741770622485,43.23751559,124.98,124.87,43.23751559]
[1741770622683,3.1552,124.97,124.86,6.0768]
[1741770622887,8.0057,124.94,124.87,8.0092]
[1741770623185,0.05801039,124.93,124.9,0.05733922]
[1741770623374,8.007,124.92,124.9,0.05733922]
[1741770623582,0.05801039,124.93,124.9,0.05733922]
[1741770625610,8.0072,124.91,124.9,0.05733922]
[1741770625789,0.05801039,124.93,124.83,283.47751559]
[1741770626092,43.23751559,124.94,124.83,283.47751559]
[1741770626292,43.23751559,124.9,124.81,1.6024357]
[1741770626586,3.0495,124.89,124.81,1.6024357]
[1741770626981,0.05187125,124.86,124.84,0.05521974]
[1741770627183,8.011,124.85,124.84,0.05521974]
[1741770627781,2.4,124.85,124.73,8.0187]
[1741770627981,2.9598,124.84,124.73,43.23751559]
[1741770628183,2.9598,124.84,124.75,63.23751559]
[1741770628382,132.03304554,124.97,124.82,43.23751559]
[1741770628582,132.03304554,124.97,124.83,46.09431559]
[1741770628583,43.23751559,124.95,124.83,46.09431559]
[1741770628787,8.0073,124.91,124.83,46.09431559]
[1741770628984,0.05385699,124.9,124.8,43.23751559]
[1741770629481,43.23751559,124.91,124.79,43.23751559]
[1741770629681,43.23751559,124.93,124.81,43.23751559]
[1741770629994,8.0047,124.95,124.83,43.23751559]
[1741770630187,132.03304554,124.97,124.86,43.23751559]
[1741770630388,7.382e-05,124.88,124.86,43.29028834]
[1741770630696,132.03304554,124.97,124.86,43.23751559]
[1741770630891,138.13144554,124.99,124.89,43.23751559]
[1741770631094,138.13144554,124.99,124.91,43.23751559]
[1741770631592,0.06160199,124.96,124.82,3.131]
[1741770631893,43.23751559,124.92,124.82,2.8669]
[1741770632096,8.0076,124.91,124.82,2.8669]
[1741770632302,43.23751559,124.95,124.82,2.8669]
[1741770632696,43.23751559,124.98,124.84,43.23751559]
[1741770632999,0.0592086,124.9,124.87,0.05535153]
[1741770633194,0.0592086,124.9,124.8,51.25121559]
[1741770633399,43.23751559,124.9,124.8,8.0137]
[1741770633595,0.05527335,124.86,124.78,2.8669]
[1741770633796,0.05527335,124.86,124.76,44.84059349]
[1741770633797,43.29278894,124.86,124.76,1.6030779]
[1741770634102,52.29551559,124.89,124.76,44.84059349]
[1741770634697,0.0574975,124.84,124.81,0.05935822]
[1741770634895,43.23751559,124.82,124.76,1.6030779]
[1741770635096,43.23751559,124.81,124.76,1.6030779]
[1741770635397,43.23751559,124.86,124.76,1.6030779]
[1741770636004,43.23751559,124.83,124.76,1.6030779]
[1741770636193,0.06114105,124.82,124.68,129.30344682]
[1741770636399,43.23751559,124.77,124.68,129.30344682]
[1741770636595,43.23751559,124.72,124.68,129.30344682]
[1741770636906,43.23751559,124.75,124.68,129.30344682]
[1741770637104,43.23751559,124.75,124.63,43.23751559]
[1741770637504,0.05259628,124.7,124.68,0.0598821]
[1741770638002,2.9357,124.76,124.68,0.0598821]
[1741770638301,43.23751559,124.8,124.72,8.0193]
[1741770638505,2.8675,124.84,124.71,43.23751559]
[1741770638708,2.8675,124.84,124.74,43.23751559]
[1741770638901,2.8675,124.84,124.76,8.0167]
[1741770639203,43.23751559,124.92,124.77,43.23751559]
[1741770639398,0.05710276,124.81,124.8,43.23751559]
[1741770639601,43.23751559,124.92,124.79,43.29727726]
[1741770639801,43.23751559,124.92,124.77,62.0]
[1741770640008,2.9173,124.91,124.77,62.0]
[1741770640208,2.9173,124.91,124.8,43.23751559]
[1741770640503,43.23751559,124.86,124.78,1.60282096]
[1741770640704,43.23751559,124.86,124.84,0.05922251]
[1741770640898,45.63751559,124.86,124.74,43.23751559]
[1741770641102,43.23751559,124.86,124.74,43.23751559]
[1741770641405,160.25010518,124.87,124.74,43.23751559]
[1741770641605,43.23751559,124.86,124.74,44.84085052]
[1741770641807,43.23751559,124.86,124.76,43.23751559]
[1741770642003,0.05711983,124.81,124.79,0.06044147]
[1741770642406,43.23751559,124.86,124.79,0.06044147]
[1741770642599,0.05527571,124.81,124.79,0.06044147]
[1741770642807,43.23751559,124.81,124.79,0.06044147]
[1741770643108,46.29321559,124.8,124.74,1.60333493]
[1741770643412,43.23751559,124.77,124.65,283.59751559]
[1741770643811,43.23751559,124.77,124.66,62.0]
[1741770644006,43.23751559,124.77,124.65,283.59751559]
[1741770644206,0.05878882,124.73,124.7,0.05907152]
[1741770645214,3.0557,124.8,124.71,43.23751559]
[1741770645411,3.0557,124.8,124.74,8.0175]
[1741770645615,43.23751559,124.85,124.73,43.23751559]
[1741770645815,43.23751559,124.85,124.72,43.23751559]
[1741770646117,46.18521559,124.85,124.72,43.23751559]
[1741770646317,46.18521559,124.85,124.74,43.23751559]
[1741770646506,0.05944917,124.8,124.77,0.05677579]
[1741770646812,0.01581317,124.8,124.78,43.23751559]
[1741770647117,88.03468702,124.88,124.78,105.23751559]
[1741770647308,88.03468702,124.88,124.81,43.23751559]
[1741770648112,88.03468702,124.88,124.83,43.23751559]
[1741770648310,7.157e-05,124.86,124.85,43.23751559]
[1741770648515,88.03468702,124.88,124.83,0.0547472]
[1741770648809,88.03468702,124.88,124.84,43.23751559]
[1741770649116,68.38238702,124.88,124.86,43.23751559]
[1741770649415,89.51904554,124.89,124.88,8.0091]
[1741770649617,206.51830222,124.9,124.88,43.23751559]
[1741770649817,0.05741134,124.9,124.88,43.23751559]
[1741770650117,0.05741134,124.9,124.88,51.24601559]
[1741770650312,0.05741134,124.9,124.88,43.23751559]
[1741770650614,2.8571,124.97,124.88,45.63751559]
[1741770650916,3.052,125.01,124.94,43.23751559]
[1741770651111,5.9132,125.01,124.92,43.23751559]
[1741770651516,13.9145,125.01,124.92,43.23751559]
[1741770651711,5.9132,125.01,124.92,43.23751559]
[1741770652013,0.05580536,124.98,124.95,0.05558062]
[1741770652212,43.29332095,124.98,124.89,1.60140924]
[1741770652408,43.29332095,124.98,124.87,43.23751559]
[1741770652715,49.15071559,125.01,124.89,43.23751559]
[1741770652910,2.8612,125.01,124.93,43.23751559]
[1741770653119,2.8612,125.01,124.97,43.23751559]
[1741770653518,0.05353227,124.98,124.96,0.05150788]
[1741770654018,0.05353227,124.98,124.97,43.23751559]
[1741770654415,4.3783,125.05,124.97,43.23751559]
[1741770654609,4.3783,125.05,124.99,43.23751559]
[1741770654820,4.3783,125.05,124.97,43.23751559]
[1741770655512,4.3783,125.05,124.99,43.23751559]
[1741770655716,0.05912341,125.02,125.01,43.23751559]
[1741770655917,7.1941,125.09,125.01,43.23751559]
[1741770656119,7.1941,125.09,125.03,43.23751559]
[1741770656317,7.1941,125.09,125.01,43.23751559]
[1741770656517,7.1941,125.09,124.99,43.23751559]
[1741770657019,7.9967,125.08,125.0,8.0009]
[1741770657219,0.05288295,125.05,125.03,43.2901907]
[1741770657520,4.2062,125.11,125.03,43.2901907]
[1741770657719,4.2062,125.11,125.04,62.0]
[1741770657924,4.2062,125.11,125.01,283.43751559]
[1741770658220,43.23751559,125.1,124.97,43.23751559]
[1741770658617,43.23751559,125.08,124.97,43.23751559]
[1741770658823,8.0006,125.02,124.95,283.43751559]
[1741770659023,0.05909592,125.05,124.95,283.43751559]
[1741770659220,4.2581,125.05,125.01,0.05840665]
[1741770659424,0.05428793,125.01,124.99,43.23751559]
[1741770659829,4.2581,125.05,124.97,43.23751559]
[1741770660025,0.05441982,125.01,124.99,0.05900998]
[1741770660822,0.05441982,125.01,124.93,43.23751559]
[1741770661219,43.23751559,125.02,124.91,43.23751559]
[1741770661415,43.23751559,125.0,124.89,369.98085951]
[1741770661620,43.23751559,124.96,124.89,86.58334392]
[1741770662122,0.0597355,124.94,124.92,0.0507275]
[1741770662321,43.29725109,124.94,124.84,43.23751559]
[1741770662827,3.9675,124.95,124.86,43.23751559]
[1741770663019,43.23751559,124.94,124.84,43.23751559]
[1741770663214,3.9675,124.95,124.86,43.23751559]
[1741770663417,0.0552378,124.9,124.88,0.05448243]